Cogmind - Beta 13 @@@ ROGUE MODE // 2024.05.08 @ 17:45:07 Player: BrainTooSmol Result: Destroyed by G-34 Mercenary with Small Laser Performance ------------- Evolutions (0) 0 Regions Visited (4) 800 Robots Destroyed (30) 150 Value Destroyed (516) 516 Prototype IDs (0) 0 Alien Tech Used (0) 0 Bonus (106) 106 TOTAL SCORE: 1572 Bonus ------- Follower Combat Kills 106 Cogmind --------- Core Integrity 0/250 Matter 236/300 Energy 125/125 System Corruption 3% Temperature Cool (12) Movement Rolling (230) Ox10 Location -9/Mines Parts ------- > --- POWER (1) -------- Light Ion Engine > --- PROPULSION (2) --- Wheel Wheel > --- UTILITY (2) ------ Humpback > --- WEAPON (2) ------- Assault Rifle Light Assault Rifle > --- INVENTORY (35) --- Light Treads Small Storage Unit Weight Redist. System Weight Redist. System Visual Processing Unit Seismic Detector ECM Suite Bomb Drone Bay Light Assault Rifle Light Assault Rifle Light Cannon Rocket Launcher Mining Laser Hammer Peak State ------------ > --- POWER ------------ Light Ion Engine > --- PROPULSION ------- Light Treads Wheel > --- UTILITY ---------- Medium Storage Unit Improved Terrain Scanner > --- WEAPON ----------- Light Assault Rifle Light Assault Rifle > --- INVENTORY -------- Light Treads Small Storage Unit Weight Redist. System Visual Processing Unit ECM Suite Light Assault Rifle Rocket Launcher Mining Laser Hammer [Rating: 10] Favorites ----------- Power Light Ion Engine Engine Light Ion Engine Propulsion Aluminum Leg Treads Light Treads Leg Aluminum Leg Wheel Wheel Utility Medium Storage Unit Device Sensor Array Storage Medium Storage Unit Weapon Light Assault Rifle Energy Gun Medium Laser Ballistic Gun Light Assault Rifle Impact Weapon Hammer Build | -11 -10 -10 -10 -9 ------- Run | Yrd Mat Min Exi Min Slots Evolved . | . . . . . Power . | . . . . . Propulsion . | . . . . . Utility . | . . . . . Weapon . | . . . . . Parts Attached 25 | . 8 14 1 2 Power 4 | . 2 2 . . Engine 4 | . 2 2 . . Core . | . . . . . Reactor . | . . . . . Propulsion 5 | . 3 1 . 1 Treads 1 | . 1 . . . Leg 1 | . 1 . . . Wheel 3 | . 1 1 . 1 Hover . | . . . . . Flight . | . . . . . Utility 6 | . 2 3 1 . Device 4 | . 1 3 . . Storage 2 | . 1 . 1 . Processor . | . . . . . Hackware . | . . . . . Protection . | . . . . . Artifact . | . . . . . Weapon 10 | . 1 8 . 1 Energy Gun 3 | . 1 2 . . Energy Cannon . | . . . . . Ballistic Gun 5 | . . 4 . 1 Ballistic Cannon . | . . . . . Launcher . | . . . . . Special Weapon . | . . . . . Impact Weapon 2 | . . 2 . . Slashing Weapon . | . . . . . Piercing Weapon . | . . . . . Special Melee Weapon . | . . . . . Unidentified Prototypes . | . . . . . Parts Lost 8 | . 4 4 . . Power 3 | . 1 2 . . Propulsion 2 | . 2 . . . Utility 2 | . . 2 . . Weapon 1 | . 1 . . . Highest Loss Streak 4 | . 4 2 . . To Critical Strikes . | . . . . . Average Slot Usage (%) 91 | . 97 86 93 85 Engine 12 | . 13 9 14 14 Treads 8 | . . 14 14 12 Leg 10 | . 26 . . . Wheel 9 | . . 14 14 15 Device 7 | . 12 5 8 . Storage 14 | . 14 14 14 14 Energy Gun 7 | . 14 4 . . Ballistic Gun 20 | . 13 21 28 28 Naked Turns . | . . . . . Heaviest Build 206 | 14 18 17 205 206 Greatest Support 20 | 20 20 10 10 20 Greatest Overweight (x) 20 | . 4 1 20 20 Average Overweight (x) 2 | . . . 3 18 Largest Inventory Capacity 35 | 8 10 10 35 35 Average Capacity 15 | 8 8 10 19 35 Most Carried 15 | 6 10 10 10 15 Average Carried 9 | 6 8 9 8 13 Final Capacity 35 | 8 10 10 35 35 Final Carried 15 | 6 8 9 10 15 Class Distribution -------------------- 54% | Mutant 26% | Hauler-Mutant 18% | Scavenger-Mutant Dominant Class ---------------- Mutant | -10/Materials Mutant | -10/Mines Scavenger-Mutant | -10/Exiles Hauler-Mutant | -9/Mines Resources | -11 -10 -10 -10 -9 ----------- Run | Yrd Mat Min Exi Min Matter Collected 700 | 200 213 243 . 44 Remotely . | . . . . . Salvage Created 872 | . 469 324 . 79 Parts 66 | . 30 30 . 6 Haulers Intercepted 2 | . 2 . . . Recyclers Shooed . | . . . . . Parts Field Recycled . | . . . . . Retrieved Matter . | . . . . . Parts Self-Destructed . | . . . . . Prevented . | . . . . . Kills | -11 -10 -10 -10 -9 ------- Run | Yrd Mat Min Exi Min Combat Hostiles Destroyed 24 | . 11 12 . 1 Melee 1 | . . 1 . . Guns 23 | . 11 11 . 1 Classes Destroyed 8 | . 4 3 . 1 Worker 1 | . . 1 . . Tunneler 4 | . . 3 . 1 Hauler 2 | . 2 . . . Watcher 2 | . 2 . . . Swarmer 12 | . 6 6 . . Grunt 8 | . 5 3 . . Brawler 1 | . . . . 1 Assembled 3 | . . 3 . . Best Kill Streak 3 | . 3 3 . 1 Combat Bots Only 3 | . 3 3 . 1 Max Kills in Single Turn 1 | . 1 1 . 1 Gunslinging . | . . . . . Exploded . | . . . . . Melee 1 | . . 1 . . Uniques/NPCs Destroyed . | . . . . . Combat | -11 -10 -10 -10 -9 -------- Run | Yrd Mat Min Exi Min Hostile Shots Fired 152 | . 55 76 . 21 Missed 45 | . 19 19 . 7 Damage Taken 1349 | . 560 570 . 219 Core 256 | . 127 108 . 21 Absorbed by Shields . | . . . . . Core Remaining (%) 100 | 100 . . . . Volleys Fired 127 | . 48 64 . 15 Largest 2 | . 2 2 . 2 Hottest 90 | . 70 90 . 40 Shots Fired 247 | . 93 123 1 30 Gun 247 | . 93 123 1 30 Cannon . | . . . . . Launcher . | . . . . . Special . | . . . . . Kinetic 166 | . 45 90 1 30 Thermal 81 | . 48 33 . . Explosive . | . . . . . Electromagnetic . | . . . . . Robot Hit Streak 7 | . 6 6 . 7 Robot Miss Streak 4 | . 4 4 . 3 Penetration Max . | . . . . . Secondary Targets 4 | . 2 1 . 1 Max Gunslinging Chain 1 | . 1 1 . 1 Shots Hit Robots 138 | . 54 69 . 15 Core Hits 57 | . 23 31 . 3 Critical Kills . | . . . . . Critical Parts Destroyed 1 | . . . . 1 Critical Strikes 3 | . 2 . . 1 Burn 2 | . 2 . . . Destroy 1 | . . . . 1 Melee Attacks 13 | . . 13 . . Impact 13 | . . 13 . . Slashing . | . . . . . Piercing . | . . . . . Sneak Attacks . | . . . . . Combat Hostiles . | . . . . . Follow-up Attacks . | . . . . . Damage Inflicted 1574 | . 789 632 . 153 Guns 1415 | . 691 571 . 153 Cannons . | . . . . . Explosions 98 | . 98 . . . Melee 61 | . . 61 . . Ramming . | . . . . . Kinetic 911 | . 357 401 . 153 Thermal 504 | . 334 170 . . Explosive . | . . . . . Electromagnetic 98 | . 98 . . . Impact 61 | . . 61 . . Slashing . | . . . . . Piercing . | . . . . . Highest Corruption 3 | . 3 3 3 3 Average Corruption 2 | . 2 3 3 3 Corruption Purged . | . . . . . Corruption Blocked . | . . . . . Effects 60 | . 25 18 8 9 Message Errors 12 | . 6 4 2 . Matter Fused 8 | . 4 2 . 2 Heat Flow Errors 9 | . 4 2 1 2 Energy Discharges 13 | . 4 4 3 2 Data Loss (minor) 5 | . 1 2 1 1 Data Loss (major) 5 | . 1 2 . 2 Misfires 5 | . 2 2 1 . Alerts 2 | . 2 . . . Weapon Failures 1 | . 1 . . . Overload Shots . | . . . . . Overflow Damage 31 | . . 31 . . Projectiles . | . . . . . Explosions . | . . . . . Melee 31 | . . 31 . . Knockbacks . | . . . . . Impact . | . . . . . Kinetic . | . . . . . Secondary . | . . . . . Self-Inflicted Damage 21 | . 21 . . . Shots 1 | . 1 . . . Rammed . | . . . . . Targets Rammed . | . . . . . Kicked . | . . . . . Crushed . | . . . . . Highest Temperature 255 | . 223 255 158 255 Average Temperature 62 | . 45 80 88 88 Received Heat Transfer 441 | . 132 243 . 66 Effects 3 | . . 3 . . Interference 3 | . . 3 . . Siege Activations . | . . . . . Robots Corrupted . | . . . . . Combat Hostiles . | . . . . . Parts Fried . | . . . . . Impact Corruptions 1 | . . 1 . . Robots Melted . | . . . . . Combat Hostiles . | . . . . . Parts Melted 1 | . 1 . . . Heat Transferred 1570 | . 1147 423 . . Parts Sabotaged . | . . . . . Parts Stolen . | . . . . . Parts Stripped . | . . . . . Power Chain Reactions . | . . . . . Alert | -11 -10 -10 -10 -9 ------- Run | Yrd Mat Min Exi Min Peak Influence 203 | . 175 203 . 30 Initial 27 | . . 27 . . Average 52 | . 79 57 . . Maximum Alert Level 1 | . . 1 . . Low Security (%) 99 | 100 100 98 . 100 Level 1 . | . . 1 . . Level 2 . | . . . . . Level 3 . | . . . . . Level 4 . | . . . . . Level 5 . | . . . . . High Security . | . . . . . Max Security . | . . . . . Squads Dispatched 4 | . 4 . . . Investigation 3 | . 3 . . . Extermination . | . . . . . Reinforcement 1 | . 1 . . . Assault . | . . . . . Garrison . | . . . . . Intercept . | . . . . . Searches Triggered . | . . . . . Construction Impeded . | . . . . . Haulers Reinforced . | . . . . . Active Scanning Responses . | . . . . . Cargo Convoy Interrupts . | . . . . . Stealth | -11 -10 -10 -10 -9 --------- Run | Yrd Mat Min Exi Min Distress Signals . | . . . . . Communications Jammed . | . . . . . Distress Signals . | . . . . . Times Spotted 46 | . 23 21 . 2 Peak Tracking Total 5 | . 5 3 . 2 Tactical Retreats 3 | . 1 2 . . Traps | -11 -10 -10 -10 -9 ------- Run | Yrd Mat Min Exi Min Traps Triggered 3 | . 3 . . . Indirectly . | . . . . . Trap Hack Attempts . | . . . . . Triggered . | . . . . . Disarmed . | . . . . . Reprogrammed . | . . . . . Reused . | . . . . . Traps Extracted . | . . . . . Installed . | . . . . . Triggered . | . . . . . Machines | -11 -10 -10 -10 -9 ---------- Run | Yrd Mat Min Exi Min Machines Disabled 1 | . 1 . . . Max in Single Turn 1 | . 1 . . . Machines Repaired . | . . . . . Machines Dismantled . | . . . . . Machines Sabotaged . | . . . . . Overloaded Fab Kills . | . . . . . Hacking | -11 -10 -10 -10 -9 --------- Run | Yrd Mat Min Exi Min Machines Accessed 11 | . 9 . 1 1 Terminals 7 | . 7 . . . Fabricators . | . . . . . Repair Stations . | . . . . . Recycling Units 2 | . 2 . . . Scanalyzers . | . . . . . Garrison Access . | . . . . . Total Hacks 26 | . 24 . 1 1 Successful 16 | . 14 . 1 1 Failed 10 | . 10 . . . Catastrophic 1 | . 1 . . . Database Lockouts . | . . . . . Manual 15 | . 15 . . . Terminals 17 | . 17 . . . Fabricators . | . . . . . Repair Stations . | . . . . . Recycling Units 7 | . 7 . . . Scanalyzers . | . . . . . Garrison Access . | . . . . . Terminal Hacks 7 | . 5 . 1 1 Record 1 | . . . 1 . Robot Analysis 2 | . 2 . . . Open Door 1 | . . . . 1 Dispatch Records 1 | . 1 . . . Maintenance Status 1 | . 1 . . . Recall Reinforcements 1 | . 1 . . . Fabricator Hacks . | . . . . . Repair Station Hacks . | . . . . . Recycling Unit Hacks 2 | . 2 . . . Report Inventory 2 | . 2 . . . Scanalyzer . | . . . . . Garrison Access Hacks . | . . . . . Unauthorized Hacks 7 | . 7 . . . Terminals 3 | . 3 . . . Assimilate 1 | . 1 . . . Botnet 2 | . 2 . . . Fabricators . | . . . . . Repair Stations . | . . . . . Recycling Units 4 | . 4 . . . Reject 1 | . 1 . . . Mask 1 | . 1 . . . Tunnel 2 | . 2 . . . Scanalyzers . | . . . . . Garrison Access . | . . . . . Data Cores Recovered . | . . . . . Used . | . . . . . Hacking Detections 6 | . 6 . . . Full Trace Events 1 | . 1 . . . Feedback Events . | . . . . . Feedback Blocked . | . . . . . Robot Schematics Acquired . | . . . . . Robots Built . | . . . . . Authchips . | . . . . . Time . | . . . . . Total Robot Build Rating . | . . . . . Part Schematics Acquired . | . . . . . Parts Built . | . . . . . Authchips . | . . . . . Time . | . . . . . Total Part Build Rating . | . . . . . Parts Repaired . | . . . . . Time . | . . . . . Parts Recycled . | . . . . . Recycled Matter . | . . . . . Retrieved Matter . | . . . . . Retrieved Components . | . . . . . Parts Scanalyzed . | . . . . . Part Schematics Acquired . | . . . . . Parts Damaged . | . . . . . Bothacking | -11 -10 -10 -10 -9 ------------ Run | Yrd Mat Min Exi Min Used RIF Installer . | . . . . . Robots Hacked . | . . . . . Non-combat . | . . . . . Combat . | . . . . . Robot Hacks Applied . | . . . . . Relay Couplers Released . | . . . . . Fabnet Peak Effective % . | . . . . . Robots Rewired . | . . . . . Allies Hacked . | . . . . . Hacks Repelled . | . . . . . Allies | -11 -10 -10 -10 -9 -------- Run | Yrd Mat Min Exi Min Total Allies 5 | . 1 4 . . Largest Group 3 | . 1 3 . . Highest-Rated Group 40 | . 10 40 . . Highest-Rated Ally 31 | . 10 31 . . Total Orders 2 | . 2 . . . STAY 1 | . 1 . . . FOLLOW 1 | . 1 . . . Ally Attacks 29 | . . 29 . . Total Damage 299 | . . 299 . . Kills 6 | . . 6 . . Allies Corrupted . | . . . . . Allies Melted . | . . . . . Intel | -11 -10 -10 -10 -9 ------- Run | Yrd Mat Min Exi Min Robot Analysis Total 2 | . 2 . . . Derelict Logs Recovered 3 | . . 1 . 2 Drone Launches . | . . . . . Drone Recoveries . | . . . . . Exploration | -11 -10 -10 -10 -9 ------------- Run | Yrd Mat Min Exi Min Turns Passed 3947 | 2 1560 1146 324 915 Spaces Moved 2401 | 2 1061 863 239 236 Core 1 | . 1 . . . Treads . | . . . . . Legs 973 | 2 971 . . . Wheels 1427 | . 89 863 239 236 Hover . | . . . . . Flight . | . . . . . Fastest Speed 80 | 120 95 80 80 230 Average Speed 134 | 120 118 94 132 356 Slowest Speed 380 | 120 250 95 380 380 Overloaded Moves . | . . . . . Propulsion Burnouts . | . . . . . Robots Hopped . | . . . . . Cave-ins Triggered . | . . . . . Exploration Rate (%) 58 | 2 98 98 59 51 Regions Visited 4 Branch Regions 3 Pre-discovered Areas 5 | . 2 1 1 1 Known Exits Taken . | . . . . . Unknown Exits Taken 4 | 1 1 1 1 . Scrap Searched 3 | . . 1 . 2 Spaces Dug . | . . . . . Terrain Destroyed . | . . . . . Melee . | . . . . . Projectile . | . . . . . AOE . | . . . . . Terrain Rammed . | . . . . . Walls Destroyed . | . . . . . Machines Disabled . | . . . . . Actions | -11 -10 -10 -10 -9 --------- Run | Yrd Mat Min Exi Min Total 2871 | 1 1277 1060 250 283 Wait 274 | . 148 100 . 26 Move 2397 | 1 1060 862 238 236 Hop . | . . . . . Pick Up 17 | . 8 1 5 3 Fast Attach 11 | . 2 7 1 1 Attach 3 | . 3 . . . Detach . | . . . . . Swap 11 | . 3 7 . 1 Drop 18 | . 5 6 6 1 Fire 127 | . 48 64 . 15 Melee 13 | . . 13 . . Ram . | . . . . . Kick . | . . . . . Crush . | . . . . . Escape Stasis . | . . . . . Rewire . | . . . . . Trap . | . . . . . Miscellaneous . | . . . . . Route ------- -11/Scrapyard -10/Materials (discovered 5 exits: [*Mat x3] / [*Min x2]) -10/Mines (discovered 4 exits: [*Mat x2] / *Exi / [*Sub]) -10/Exiles -9/Mines History --------- Turn | Location | Event 1 | -11/Scrapyard | Discovered new exit (range 1) 3 | -11/Scrapyard | Entered Materials 55 | -10/Materials | Discovered new exit (range 9) 308 | -10/Materials | Build established: Mutant 377 | -10/Materials | Discovered new exit (range 9) 539 | -10/Materials | Discovered new exit (range 16) 799 | -10/Materials | Discovered new exit (range 14) 1158 | -10/Materials | Discovered new exit (range 11) 1467 | -10/Materials | Core integrity fell below 50% 1493 | -10/Materials | Lost 4 parts (1p2n1w) 1563 | -10/Materials | Entered Mines 1563 | -10/Mines | Accompanied by 1 ally 1570 | -10/Mines | Received a Rocket Launcher from a helpful Derelict 1594 | -10/Mines | Excavation squad dispatched 1594 | -10/Mines | A large section of the Mines collapsed 1707 | -10/Mines | Learned Materials emergency access door positions 1770 | -10/Mines | Deemed a non-threat by the Exiles lab entrance 1770 | -10/Mines | Discovered new exit (range 5) 1849 | -10/Mines | Discovered new exit (range 8) 1857 | -10/Mines | Assisted by bots powering up and referring to "LRC-V3" 1927 | -10/Mines | Discovered new exit (range 6) 2129 | -10/Mines | Core integrity fell below 20% 2224 | -10/Mines | Discovered new exit (range 9) 2315 | -10/Mines | Escorted by a lone wolf Derelict 2335 | -10/Mines | Learned location of Storage (-8) 2709 | -10/Mines | Entered Exiles 2734 | -10/Exiles | Met 8R-AWN 2743 | -10/Exiles | Build established: Scavenger-Mutant 2750 | -10/Exiles | Met EX-HEX 2789 | -10/Exiles | Met EX-DEC 2793 | -10/Exiles | Learned location of Zion (-6) 2998 | -10/Exiles | Discovered new exit (range 10) 3033 | -10/Exiles | Entered Mines 3071 | -9/Mines | Met a Derelict bent on vengeance 3176 | -9/Mines | Build established: Hauler-Mutant 3304 | -9/Mines | Found the Drone Emporium 3326 | -9/Mines | Found Prototype Device 3948 | -9/Mines | Destroyed by G-34 Mercenary with Small Laser Last Messages --------------- 03474_ K-01 Serf collects debris. 03517_ System corrupted: Energy discharge (-32). 03527_ K-01 Serf collects debris. 03532_ T-07 Excavator is excavating. 03551_ System corrupted: Heat flow error (+270). 03554_ T-07 Excavator is excavating. 03731_ System corrupted: Substantial component data lost. 03812_ T-07 Excavator destroyed. 03814_ K-01 Serf collects debris. 03814_ Acquired 14 matter. 03822_ Dropped Lgt. Treads. 03823_ Acquired Wheel. 03824_ Acquired 9 matter. 03837_ System corrupted: Energy discharge (-42). 03895_ System corrupted: Matter fused (-7). 03919_ Knocked back. 03932_ B-36 Bruiser destroyed. 03932_ Switching to secondary target: G-34 Mercenary. 03944_ G-34 Mercenary suffers critical hit (Destroy). 03944_ Destroyed Heat Sink. Map ----- +----------------------------------------------------+ | ? #?????##???????????????????????????????????? | | # ####???????????????????????????????????????? | | #????????????????????????????????????? | | ######???????????????????????????????????????? | | ??????????#??????????????????????????????????? | | #####????? ??????????????????????????????????? | | *! |#????# #?????????????????????????????????? | | ### #????# #?????????????????????????????????? | | ??# #????# #?????????????????????????????????? | | ??# #????# #?????????????????????????????????? | | ??# #????# #?????????????????????????????????? | | #?# #????# #?????????????????????????????????? | | #?# ##???# #?????????????????????????????????? | | ### ##### #?????????????????????????????????? | | ## #?????????????????????????????????? | | ?# #### #?????????????????????????????????? | | ?# #??# #####???????####??????????????????? | | ?# #?# #??????## ###????????????????? | | ?## ##### #??????# ##???????????????? | | ??## ???# ##????## #???????????????? | | ???## #??# ###### #???????????????? | | ????# #??# ## #???????????????? | | ????## #??# #???????????????? | | ??????# ##??# ###u#####???????? | | ??????? ##???## g #???????? | | ??????? #?????## @%! #???????? | | ??????? #??????### ### /########??????????? | | ??????? #????????######?####?????????????????? | | ????????#????????????????????????????????????? | | ?????????????????????????????????????????????? | | ?????????????????????????????????????????????? | | ?????????????????????????????????????????????? | | ?????????????????????????????????????????????? | | ?????????????????????????????????????????????? | | ?????????????????????????????????????????????? | | ?????????????????????????????????????????????? | | ?????????????????????????????????????????????? | | ?????????????????????????????????????????????? | | ?????????????????????????????????????????????? | | ?????????????????????????????????????????????? | | ?????????????????????????????????????????????? | | ?????????????????????????????????????????????? | | ?????????????????????????????????????????????? | | ?????????????????????????????????????????????? | | ?????????????????????????????????????????????? | | ?????????????????????????????????????????????? | | ?????????????????????????????????????????????? | | ?????????????????????????????????????????????? | | | | | +----------------------------------------------------+ Best States ------------- Heat Dissipation 25 Energy Generation 10 Energy Capacity 250 Matter Stores 300 Matter Capacity 300 Sight Range 16 Robot Scan Range 14 Terrain Scan Range 16 Terrain Scan Density 10 Evasion (%) 55 Recoil Reduction 1 Item Schematics ----------------- None Robot Schematics ------------------ None Fabricated ------------ Nothing Alien Tech Used ----------------- None Achievements -------------- Tank Challenges ------------ None Game ------ Seed TitaniumMyomerRigger Manual? 0 Play Time 00:29:12 Cumulative 82.1 hours Start 2024.05.08 @ 16:46:36 End 2024.05.08 @ 17:45:07 Sessions 5 Manual Loads 0 Difficulty Rogue Special Mode None Game No. 58 Rogue 58 Adventurer 0 Explorer 0 Win Type - Total 1 Types 1/0/0/0/0/0/0/0/0 Lore% 52 Gallery% 44 Achievement% 43 Wizard Run 0 Options --------- Layout 0 ASCII 0 Keyboard 0 Movement Mouse Keybinds 0 Fullscreen 1 Font 18/SmallcapsGlow Map View 76x50 Zoom Use 0% Tactical HUD 1 Map Filters NONE Filters NONE Steam 1 RUN: d1b6e537-5cd2-4002-a7c3-3e845bc571bf